Cogmind - Beta 16 @@@ ROGUE MODE // 2025.12.01 @ 15:58:34 Player: lepire Result: Destroyed by 0Q-N28(R) with Subdweller Machine Gun Performance ------------- Evolutions (0) 0 Regions Visited (2) 400 Robots Destroyed (18) 90 Value Destroyed (667) 667 Prototype IDs (0) 0 Alien Tech Used (0) 0 Bonus (-12) -12 TOTAL SCORE: 1145 Bonus ------- Friendly Fire -12 Cogmind --------- Core Integrity 0/250 Matter 270/300 Energy 195/200 System Corruption 0% Temperature Cool (6) Movement Core (250) Ox4 Location -10/Subcaves Parts ------- > --- POWER (1) -------- Subdweller Power Source > --- PROPULSION (2) --- (None) > --- UTILITY (2) ------ Core Shielding Makeshift Light Armor Plating > --- WEAPON (2) ------- Battle Cannon > --- INVENTORY (5) ---- Subdweller Optics Cobbler Unit Subdweller Laser Subdweller Machine Gun Peak State ------------ > --- POWER ------------ Subdweller Power Source > --- PROPULSION ------- Subdweller Monowheel Subdweller Monowheel > --- UTILITY ---------- Makeshift Light Armor Plating > --- WEAPON ----------- Battle Rifle Battle Cannon > --- INVENTORY -------- Subdweller Optics Cobbler Unit Subdweller Laser Subdweller Machine Gun [Rating: 15] Favorites ----------- Power Subdweller Power Source Engine Subdweller Power Source Propulsion Light Treads Treads Light Treads Leg Aluminum Leg Wheel Wheel Utility Makeshift Light Armor Plating Device Structural Scanner Storage Small Storage Unit Protection Makeshift Light Armor Plating Weapon Battle Cannon Ballistic Gun Assault Rifle Ballistic Cannon Battle Cannon Build | -11 -10 -10 ------- Run | Yrd Mat Sub Slots Evolved . | . . . Power . | . . . Propulsion . | . . . Utility . | . . . Weapon . | . . . Parts Attached 19 | 2 1 16 Power 3 | . . 3 Engine 3 | . . 3 Core . | . . . Reactor . | . . . Propulsion 5 | 2 . 3 Treads 1 | 1 . . Leg . | . . . Wheel 4 | 1 . 3 Hover . | . . . Flight . | . . . Utility 4 | . 1 3 Device 1 | . 1 . Storage . | . . . Processor . | . . . Hackware . | . . . Protection 3 | . . 3 Artifact . | . . . Weapon 7 | . . 7 Energy Gun . | . . . Energy Cannon . | . . . Ballistic Gun 4 | . . 4 Ballistic Cannon 3 | . . 3 Launcher . | . . . Special Weapon . | . . . Impact Weapon . | . . . Slashing Weapon . | . . . Piercing Weapon . | . . . Special Melee Weapon . | . . . Unidentified Prototypes . | . . . Parts Lost 9 | . . 9 Power 1 | . . 1 Propulsion 3 | . . 3 Utility 1 | . . 1 Weapon 4 | . . 4 Highest Loss Streak 2 | . . 2 To Critical Strikes . | . . . Average Backups 4 | 6 5 4 Power . | 1 1 . Propulsion . | 4 2 . Utility 1 | . 1 1 Weapon 1 | 1 1 1 Tool/Special . | . . . Unused Backups 14 | . 4 10 Power 3 | . 1 2 Propulsion 2 | . . 2 Utility 5 | . 1 4 Weapon 4 | . 2 2 Tool/Special . | . . . Average Slot Usage (%) 79 | . 93 78 Engine 13 | . 14 13 Treads 9 | . 14 9 Wheel 13 | . 14 13 Storage 1 | . 14 . Protection 12 | . . 12 Ballistic Gun 13 | . 28 12 Ballistic Cannon 13 | . . 14 Peak Build Rating 15 | 6 7 15 Average Rating 11 | 6 6 11 On Entrance 6 | 6 6 7 Avg Prop Armor Cover (%) 7 | . 12 7 Naked Turns . | . . . Heaviest Build 26 | 11 12 26 Greatest Support 40 | 10 10 40 Greatest Overweight (x) 4 | 1 1 4 Average Overweight (x) 1 | 1 1 1 Largest Inventory Capacity 8 | 8 8 8 Average Capacity 5 | 8 8 5 Most Carried 6 | 6 6 6 Average Carried 5 | 5 5 4 Final Capacity 8 | 8 8 5 Final Carried 6 | 4 6 5 Class Distribution -------------------- 100% | Mutant Dominant Class ---------------- Mutant | -10/Materials Mutant | -10/Subcaves Resources | -11 -10 -10 ----------- Run | Yrd Mat Sub Matter Collected 1001 | 220 114 667 Remotely . | . . . Salvage Created 491 | . 60 431 Parts 31 | . 2 29 Haulers Intercepted . | . . . Recyclers Shooed . | . . . Parts Field Recycled . | . . . Retrieved Matter . | . . . Parts Self-Destructed 14 | . . 14 Prevented . | . . . Parts Restored . | . . . Kills | -11 -10 -10 ------- Run | Yrd Mat Sub Combat Hostiles Destroyed 18 | . 1 17 Guns 7 | . 1 6 Cannons 11 | . . 11 Classes Destroyed 4 | . 1 3 Swarmer 2 | . . 2 Grunt 1 | . 1 . Artisan 1 | . . 1 Subdweller 15 | . . 15 Best Kill Streak 3 | . 1 3 Combat Bots Only 3 | . 1 3 Max Kills in Single Turn 1 | . 1 1 Gunslinging . | . . . Exploded . | . . . Melee . | . . . Uniques/NPCs Destroyed . | . . . Combat | -11 -10 -10 -------- Run | Yrd Mat Sub Hostile Shots Fired 93 | . . 93 Missed 25 | . . 25 Hits 68 | . . 68 Projectile 68 | . . 68 Critical Strikes 1 | . . 1 Damage Taken 1471 | . . 1471 Core 264 | . . 264 Absorbed by Shields . | . . . Redirected to Shielding 3 | . . 3 Core Remaining (%) 100 | 100 . . Volleys Fired 72 | . 5 67 Largest 2 | . 2 2 Hottest 66 | . 40 66 Shots Fired 134 | . 10 124 Gun 59 | . 10 49 Cannon 75 | . . 75 Launcher . | . . . Special . | . . . Kinetic 134 | . 10 124 Thermal . | . . . Explosive . | . . . Electromagnetic . | . . . Robot Hit Streak 13 | . 3 13 Robot Miss Streak 4 | . 1 4 Penetration Max . | . . . Secondary Targets . | . . . Shots Hit Robots 85 | . 7 78 Core Hits 35 | . 3 32 Critical Kills . | . . . Critical Parts Destroyed . | . . . Critical Strikes 3 | . . 3 Blast 3 | . . 3 Melee Attacks . | . . . Impact . | . . . Slashing . | . . . Piercing . | . . . Sneak Attacks . | . . . Combat Hostiles . | . . . Follow-up Attacks . | . . . Damage Inflicted 1760 | . 71 1689 Guns 821 | . 71 750 Cannons 939 | . . 939 Explosions . | . . . Melee . | . . . Ramming . | . . . Kinetic 1760 | . 71 1689 Thermal . | . . . Explosive . | . . . Electromagnetic . | . . . Impact . | . . . Slashing . | . . . Piercing . | . . . Highest Corruption . | . . . Average Corruption . | . . . Corruption Purged . | . . . Corruption Blocked . | . . . Overload Shots . | . . . Overflow Damage 8 | . . 8 Projectiles 8 | . . 8 Explosions . | . . . Melee . | . . . Knockbacks 14 | . . 14 Impact . | . . . Kinetic 14 | . . 14 Secondary . | . . . Self-Inflicted Damage . | . . . Shots . | . . . Rammed . | . . . Targets Rammed . | . . . Kicked . | . . . Crushed . | . . . Highest Temperature . | . . . Average Temperature . | . . . Received Heat Transfer 147 | . . 147 Siege Activations . | . . . Martial Activations . | . . . Shielding Activations . | . . . Robots Disrupted . | . . . Combat Hostiles . | . . . Robots Corrupted . | . . . Combat Hostiles . | . . . Parts Fried . | . . . Impact Corruptions . | . . . Robots Melted . | . . . Combat Hostiles . | . . . Parts Melted 2 | . 1 1 Heat Transferred . | . . . Parts Sabotaged . | . . . Parts Stolen . | . . . Parts Stripped . | . . . Power Chain Reactions . | . . . Alert | -11 -10 -10 ------- Run | Yrd Mat Sub Maximum Alert Level . | . . . Low Security (%) 100 | 100 100 . Level 1 . | . . . Level 2 . | . . . Level 3 . | . . . Level 4 . | . . . Level 5 . | . . . High Security . | . . . Max Security . | . . . Peak Influence 35 | . 35 . Initial . | . . . Average 9 | . 9 . Influence Increases 235 | . 50 185 Destroy 0b10 Robot/C 60 | . 20 40 Destroy Leader 20 | . 10 10 Successful Hack 5 | . 5 . Lose Combat Pursuer 150 | . 15 135 Influence Decreases 177 | . 35 142 Entered New Map 8 | . . 8 Time Decay 159 | . 35 124 Lost Part 10 | . . 10 Squads Dispatched . | . . . Investigation . | . . . Extermination . | . . . Reinforcement . | . . . Assault . | . . . Garrison . | . . . Intercept . | . . . Searches Triggered . | . . . Construction Impeded . | . . . Haulers Reinforced . | . . . Active Scanning Responses . | . . . Cargo Convoy Interrupts . | . . . Stealth | -11 -10 -10 --------- Run | Yrd Mat Sub Distress Signals 1 | . 1 . Communications Jammed . | . . . Distress Signals . | . . . Times Spotted 32 | . 4 28 Peak Tracking Total 4 | . 3 4 Tactical Retreats 7 | . 1 6 Traps | -11 -10 -10 ------- Run | Yrd Mat Sub Traps Triggered 3 | . . 3 Indirectly . | . . . Trap Hack Attempts . | . . . Triggered . | . . . Disarmed . | . . . Reprogrammed . | . . . Reused . | . . . Traps Extracted . | . . . Installed . | . . . Triggered . | . . . Machines | -11 -10 -10 ---------- Run | Yrd Mat Sub Machines Disabled . | . . . Max in Single Turn . | . . . Machines Repaired . | . . . Machines Dismantled . | . . . Machines Sabotaged . | . . . Overloaded Fab Kills . | . . . Hacking | -11 -10 -10 --------- Run | Yrd Mat Sub Machines Accessed 1 | . 1 . Terminals 1 | . 1 . Fabricators . | . . . Repair Stations . | . . . Recycling Units . | . . . Scanalyzers . | . . . Garrison Access . | . . . Total Hacks 3 | . 3 . Successful 2 | . 2 . Failed 1 | . 1 . Catastrophic . | . . . Database Lockouts . | . . . Manual 1 | . 1 . Terminals 3 | . 3 . Fabricators . | . . . Repair Stations . | . . . Recycling Units . | . . . Scanalyzers . | . . . Garrison Access . | . . . Terminal Hacks 1 | . 1 . Zone Layout 1 | . 1 . Fabricator Hacks . | . . . Repair Station Hacks . | . . . Recycling Unit Hacks . | . . . Scanalyzer . | . . . Garrison Access Hacks . | . . . Unauthorized Hacks 1 | . 1 . Terminals 1 | . 1 . Botnet 1 | . 1 . Fabricators . | . . . Repair Stations . | . . . Recycling Units . | . . . Scanalyzers . | . . . Garrison Access . | . . . Data Cores Recovered . | . . . Used . | . . . Hacking Detections 1 | . 1 . Full Trace Events . | . . . Feedback Events . | . . . Feedback Blocked . | . . . Robot Schematics Acquired . | . . . Robots Built . | . . . Authchips . | . . . Time . | . . . Total Robot Build Rating . | . . . Part Schematics Acquired . | . . . Parts Built . | . . . Authchips . | . . . Time . | . . . Total Part Build Rating . | . . . Part Studies Acquired . | . . . Parts Repaired . | . . . Time . | . . . Parts Recycled . | . . . Recycled Matter . | . . . Retrieved Matter . | . . . Retrieved Components . | . . . Parts Scanalyzed . | . . . Part Schematics Acquired . | . . . Parts Damaged . | . . . Bothacking | -11 -10 -10 ------------ Run | Yrd Mat Sub Used RIF Installer . | . . . Robots Hacked . | . . . Non-combat . | . . . Combat . | . . . Robot Hacks Applied . | . . . Relay Couplers Released . | . . . Fabnet Peak Effective % . | . . . Robots Rewired . | . . . Allies Hacked . | . . . Hacks Repelled . | . . . Allies | -11 -10 -10 -------- Run | Yrd Mat Sub Total Allies . | . . . Largest Group . | . . . Highest-Rated Group . | . . . Highest-Rated Ally . | . . . Total Orders . | . . . Ally Attacks . | . . . Total Damage . | . . . Kills . | . . . Allies Corrupted . | . . . Allies Melted . | . . . Intel | -11 -10 -10 ------- Run | Yrd Mat Sub Active Infowar (turns) 97 | . 76 21 Structural 97 | . 76 21 Robot Analysis Total . | . . . Derelict Logs Recovered 2 | . . 2 Drone Launches . | . . . Drone Recoveries . | . . . Exploration | -11 -10 -10 ------------- Run | Yrd Mat Sub Turns Passed 2115 | 7 123 1985 Spaces Moved 1685 | 4 108 1573 Core 33 | . . 33 Treads 40 | . . 40 Legs . | . . . Wheels 1612 | 4 108 1500 Hover . | . . . Flight . | . . . Fastest Speed 80 | 95 95 80 Average Speed 107 | 95 95 108 Slowest Speed 250 | 95 95 250 Overloaded Moves . | . . . Propulsion Burnouts . | . . . Robots Hopped . | . . . Potential Cave-ins . | . . . Cave-ins Triggered . | . . . Exploration Rate (%) 39 | 2 32 84 Regions Visited 2 Branch Regions 1 Pre-discovered Areas . | . . . Known Exits Taken . | . . . Unknown Exits Taken 2 | 1 1 . Scrap Searched 3 | . . 3 Spaces Dug . | . . . Terrain Destroyed 2 | . . 2 Melee . | . . . Projectile 2 | . . 2 AOE . | . . . Terrain Rammed . | . . . Walls Destroyed . | . . . Machines Disabled . | . . . Actions | -11 -10 -10 --------- Run | Yrd Mat Sub Total 1857 | 7 118 1732 Wait 55 | . 3 52 Move 1683 | 3 107 1573 Hop . | . . . Pick Up 9 | . 2 7 Fast Attach 11 | . 1 10 Attach 1 | . . 1 Detach 1 | . . 1 Swap 9 | 2 . 7 Drop 16 | 2 . 14 Fire 72 | . 5 67 Melee . | . . . Ram . | . . . Kick . | . . . Crush . | . . . Escape Stasis . | . . . Rewire . | . . . Trap . | . . . Miscellaneous . | . . . Route ------- -11/Scrapyard -10/Materials (discovered 2 exits: [*Min] / [*Sub]) -10/Subcaves (discovered 1 exit: [*Mat]) History --------- Turn | Location | Event 6 | -11/Scrapyard | Discovered new exit (range 1) 8 | -11/Scrapyard | Entered Materials 9 | -10/Materials | Met a group of wandering Federalists 51 | -10/Materials | Discovered new exit (range 16) 124 | -10/Materials | Lost 3 allies 128 | -10/Materials | Discovered new exit (range 5) 131 | -10/Materials | Entered Subcaves 132 | -10/Subcaves | Continued accompanying wandering Federalists (1) 132 | -10/Subcaves | Approached by a straggling Scientist 310 | -10/Subcaves | Build established: Mutant 348 | -10/Subcaves | Lost 3 allies 476 | -10/Subcaves | Shifting Twisted Machinery released Flamer 512 | -10/Subcaves | Shifting Twisted Machinery released Mak. Shrapnel Gun 836 | -10/Subcaves | Shifting Twisted Machinery released Piercing Trap 837 | -10/Subcaves | Shifting Twisted Machinery released Mak. Light Armor Plating 865 | -10/Subcaves | Learned Materials garrison access intel 926 | -10/Subcaves | Discovered new exit (range 10) 930 | -10/Subcaves | Ambushed by Subdwellers from Twisted Machinery 932 | -10/Subcaves | Core integrity fell below 50% 1323 | -10/Subcaves | Learned 8 Materials zone layouts 1377 | -10/Subcaves | Shifting Twisted Machinery released Battle Cannon 1378 | -10/Subcaves | Shifting Twisted Machinery released Sub. Shrapnel Launcher 1645 | -10/Subcaves | Core integrity fell below 20% 1784 | -10/Subcaves | Disturbed a concealed Subdweller 2094 | -10/Subcaves | Visited 4L-MR0's lab 2116 | -10/Subcaves | Destroyed by 0Q-N28(R) with Subdweller Machine Gun Last Messages --------------- 01772_ Searching scrap... 01772_ Found Battle Cannon. 01772_ Found Sub. Machine Gun. 01772_ Found 51 Matter. 01782_ Acquired 9 matter. 01784_ 45-U2Z(R) angrily emerges from the Twisted Machinery. 01785_ 45-U2Z(R) destroyed. 01788_ Acquired 21 matter. 01885_ Subatomizers dissect the Sub. Monowheel, destroying it. 01925_ Acquired 5 matter. 02031_ Sub. Monowheel shoots sparks and powers down. 02033_ Dropped Broken Sub. Monowheel. 02086_ Triggered Piercing Trap. 02086_ Spikes shoot up from the floor. 02110_ Y5-67M(R) destroyed. 02114_ Battle Cannon destroyed. 02115_ Acquired Core Shielding. Map ----- +----------------------------------------------------+ | ##???????????????# ##???????????????? | | # ##??????????????# #????????????????? | | ## ###??????????????# #????????????????? | | # ?###??????????????## # ##???????????????? | | ?? ???????????????????## ### #???????????????? | | ???????????????????????####??# ###?????????????? | | ?????????????????????????????# #?????????????? | | ?????????????????????????????# ##????????????? | | ?????????????????????????????## #????????????? | | ??????????????????????????????## #????????????? | | ???????????????????????????????## #????????????? | | ????????????????????????????????## ##???????????? | | ?????????????????????????????????# #####???????? | | ????????????????????????????????## ##??????? | | ????????????????????????????????# #??????? | | ????????????????????#!?????????## #??????? | | ????????????????????#"#????????# ###????# | | ????????????????????# ????#####" ###?## | | ????????????????????# X???# #"" ### ## ### | | ????????????????????# "???# ####### ## | | ????????????????????#" ???# ### | | ?????????????????????" ???# #" ## | | ?????????????????????##+##### ## = | | ???????????????????### R##< # | | ???????????????????#<<<%R < ## | | ???????????????????#<< %@ < ## #### | | ???????????????????#<< <<<<<< ### ##??# | | ???????????????????##<%<< <<#### #???## | | ????????????????????#########?# ##???## | | ??????????????????????????????# #????# | | ?????????????????????????????# ##????# | | ????????????????????????????# ##?###### | | ????????????????????????????## ## ## #??# # | | ?????????????????????????????##?# ### #??## | | ????????????????????????????????# ?? ##??# | | ????????????????????????????????# ?? #???## ## | | ????????????????????????????????##?? ???## # | | ????????????????????????????????????# ????# # | | ????????????????????????????????????????????# # | | ????????????????????????????????????????????## ## | | ????????????????????????????????????????????## # | | ?????????????????????????????????????????#### ## | | ????????????????????????????????????????## # | | ????????????????????????????????????????# | | ????????????????????????????????????????# | | ????????????????????????????????????????#### | | ???????????????????????????????????????????## | | ????????????????????????????????????????????## !! | | ?????????????????????????????????????????????###& | | ??????????????????????????????????????????????##=! | +----------------------------------------------------+ Best States ------------- Heat Dissipation 25 Energy Generation 15 Energy Capacity 200 Matter Stores 300 Matter Capacity 300 Sight Range 16 Terrain Scan Density 10 Armor Coverage 800 Evasion (%) 44 Recoil Reduction 1 Item Schematics ----------------- None Robot Schematics ------------------ None Fabricated ------------ Nothing Repaired ---------- Nothing Studied --------- None Alien Tech Used ----------------- None Achievements -------------- None Challenges ------------ None Game ------ Seed FortressSupersonicFragment Manual? 0 Play Time 00:20:56 Cumulative 105.2 hours Start 2025.12.01 @ 15:39:39 End 2025.12.01 @ 15:58:34 Sessions 1 Manual Loads 0 Difficulty Rogue Special Mode None Game No. 117 Rogue 87 Adventurer 30 Explorer 0 Win Type - Total 1 Types 1/0/0/0/0/0/0/0/0/0 Lore% 51 Gallery% 44 Achievement% 33 Wizard Run 0 Options --------- Layout 2 ASCII 0 Keyboard 1 Movement Arrows Keybinds 0 Fullscreen 1 Font 24/Terminus Map View 50x44 Zoom Use 0% Tactical HUD 1 Map Filters NONE Filters NONE Steam 1 RUN: 72690587-22c5-4074-bbf4-f618e438e3c2